bitfinex-derivatives/quotes_BTCF0:USTF0_20251219
["timestamp","ask_amount","ask_price","bid_price","bid_amount"]
[1766172846411,0.00017101,87720.0,87710.0,0.0114073]
[1766172848000,0.00017101,87720.0,87707.0,0.0114078]
[1766172848400,0.00017101,87720.0,87704.0,0.00017101]
[1766172848401,0.00017101,87720.0,87709.0,0.0114075]
[1766172848803,0.00017101,87720.0,87711.0,0.0114072]
[1766172849004,0.00017101,87720.0,87710.0,0.0114074]
[1766172849312,0.00017101,87720.0,87704.0,0.00017101]
[1766172849909,0.00017101,87720.0,87712.0,0.0114071]
[1766172851706,0.0114025,87748.0,87709.0,0.00572]
[1766172851905,1.78028,87750.0,87720.0,0.0114061]
[1766172851906,0.0114041,87736.0,87720.0,0.0114061]
[1766172852100,0.00572,87735.0,87720.0,0.0114061]
[1766172853205,0.0114043,87734.0,87719.0,0.00017101]
[1766172853808,0.00572,87735.0,87719.0,0.00017101]
[1766172854004,0.0114051,87729.0,87719.0,0.00017101]
[1766172854603,0.0114044,87734.0,87719.0,0.00017101]
[1766172854804,0.00572,87735.0,87719.0,0.00017101]
[1766172855006,0.00017101,87736.0,87722.0,0.0114058]
[1766172855308,0.00017101,87736.0,87724.0,0.0114055]
[1766172855513,0.3370013,87758.0,87740.0,0.0114035]
[1766172855816,0.0114016,87755.0,87739.0,0.0114036]
[1766172856112,0.03816088,87754.0,87723.0,0.0114057]
[1766172856308,0.0114018,87754.0,87723.0,0.0114057]
[1766172856512,0.0114018,87754.0,87720.0,0.00572]
[1766172856513,0.0114021,87752.0,87732.0,0.0114045]
[1766172856718,0.00017101,87746.0,87732.0,0.0114045]
[1766172857015,0.00589101,87746.0,87732.0,0.0114045]
[1766172857217,0.00589101,87746.0,87731.0,0.0114046]
[1766172858716,0.0114029,87745.0,87728.0,0.01157601]
[1766172858913,0.00589101,87746.0,87728.0,0.00017101]
[1766172859115,0.011404,87737.0,87728.0,0.00017101]
[1766172860213,0.0114043,87735.0,87728.0,0.00017101]
[1766172860615,0.0114044,87734.0,87728.0,1e-08]
[1766172860809,0.00589101,87746.0,87728.0,1e-08]
[1766172860810,0.00572,87738.0,87728.0,1e-08]
[1766172862016,0.0114041,87736.0,87728.0,1e-08]
[1766172862321,0.00572,87738.0,87728.0,1e-08]
[1766172862517,0.0114039,87737.0,87728.0,1e-08]
[1766172862820,0.00572,87738.0,87728.0,1e-08]
[1766172863316,0.0114043,87735.0,87728.0,1e-08]
[1766172863713,0.0171239,87738.0,87728.0,1e-08]
[1766172864012,0.0114041,87736.0,87728.0,1e-08]
[1766172864812,0.011404,87737.0,87728.0,1e-08]
[1766172865012,0.00572,87738.0,87728.0,1e-08]
[1766172865416,0.0171238,87738.0,87728.0,1e-08]
[1766172866019,0.00572,87738.0,87728.0,1e-08]
[1766172866819,1.01e-06,87746.0,87728.0,1e-08]
[1766172867324,1.01e-06,87746.0,87736.0,0.0114039]
[1766172867524,1.01e-06,87746.0,87733.0,0.0114043]
[1766172869223,1.01e-06,87746.0,87728.0,1e-08]
[1766172869224,1.01e-06,87746.0,87735.0,0.0114042]
[1766172869423,1.01e-06,87746.0,87728.0,1e-08]
[1766172869722,1.01e-06,87751.0,87744.0,0.011403]
[1766172869923,1.01e-06,87751.0,87745.0,0.0114028]
[1766172870122,0.0113996,87771.0,87752.0,0.0114019]
[1766172870422,0.0113996,87771.0,87737.0,0.00572]
[1766172870423,0.00164,87767.0,87754.0,0.0114016]
[1766172870609,0.00164,87767.0,87755.0,0.0114015]
[1766172870814,0.00572,87766.0,87752.0,0.00017101]
[1766172871726,0.00572,87766.0,87755.0,0.0114015]
[1766172871928,0.00572,87766.0,87758.0,0.0114011]
[1766172872221,1.01e-06,87769.0,87761.0,0.0114008]
[1766172872413,1.01e-06,87769.0,87760.0,0.0114008]
[1766172872610,1.01e-06,87769.0,87756.0,0.0114014]
[1766172872815,1.01e-06,87769.0,87753.0,0.0114018]
[1766172873220,1.01e-06,87769.0,87755.0,0.0114015]
[1766172873725,1.01e-06,87769.0,87752.0,0.00017101]
[1766172873923,0.00188,87768.0,87752.0,1.01e-06]
[1766172874419,0.0114005,87764.0,87752.0,1.01e-06]
[1766172874824,0.0114008,87761.0,87752.0,1.01e-06]
[1766172877221,0.00188,87768.0,87752.0,1.01e-06]
[1766172878125,0.0114014,87757.0,87752.0,1.01e-06]
[1766172878318,0.0114016,87755.0,87752.0,1.01e-06]
[1766172880925,0.0114016,87755.0,87727.0,1.45416]
[1766172880926,0.0114013,87758.0,87715.0,0.0806045]
[1766172881131,0.0114033,87743.0,87725.0,0.0114054]
[1766172881427,0.0114035,87741.0,87726.0,0.00572]
[1766172881931,0.0114035,87741.0,87727.0,0.0114052]
[1766172882328,0.00017091,87742.0,87727.0,0.0114052]
[1766172882522,0.00017091,87742.0,87738.0,0.0114037]
[1766172882721,0.00017091,87742.0,87726.0,0.00572]
[1766172882722,0.00017091,87742.0,87735.0,0.0114041]
[1766172882917,0.00017091,87742.0,87731.0,0.0114047]
[1766172883328,0.00017091,87742.0,87727.0,0.00572]
[1766172883519,0.00017091,87742.0,87727.0,0.0171252]
[1766172883725,0.0114023,87750.0,87727.0,0.00572]
[1766172884222,0.0114023,87750.0,87735.0,0.0114041]
[1766172885032,0.00589091,87751.0,87737.0,0.0114039]
[1766172885222,0.01729311,87751.0,87735.0,0.0114041]
[1766172887425,0.0114024,87749.0,87732.0,0.0114045]
[1766172887725,0.0114027,87747.0,87732.0,0.00572]
[1766172888328,0.0114023,87750.0,87733.0,0.0114044]
[1766172888834,0.0114026,87748.0,87733.0,0.0114044]
[1766172889534,0.0114027,87747.0,87732.0,0.0171245]
[1766172889726,0.00589091,87751.0,87732.0,0.00572]
[1766172889925,0.0114025,87748.0,87734.0,0.0114043]
[1766172890542,1e-08,87752.0,87746.0,0.0114027]
[1766172890733,0.0113984,87780.0,87748.0,0.0114024]
[1766172891035,0.00572,87772.0,87747.0,0.0114025]
[1766172891236,0.0114016,87756.0,87740.0,0.00572]
[1766172891435,0.0114018,87754.0,87737.0,0.0114038]
[1766172891632,0.011402,87752.0,87739.0,0.00572]
[1766172891930,0.00544,87763.0,87740.0,0.0114035]
[1766172892131,0.0114023,87750.0,87739.0,0.00572]
[1766172892435,0.0114019,87753.0,87739.0,0.0171236]
[1766172893338,0.0114022,87751.0,87739.0,0.00572]
[1766172893531,0.00572,87755.0,87737.0,0.00017091]
[1766172893728,0.0114018,87754.0,87737.0,0.00017091]
[1766172893929,0.0114036,87740.0,87737.0,1e-08]
[1766172896833,0.0171236,87740.0,87737.0,1e-08]
[1766172901536,0.0114036,87740.0,87737.0,1e-08]
[1766172901840,0.00572,87742.0,87737.0,1e-08]
[1766172902036,0.00017091,87747.0,87737.0,1e-08]
[1766172902238,1e-08,87747.0,87737.0,1e-08]
[1766172902543,1e-08,87750.0,87745.0,0.0114028]
[1766172902853,1.45424,87783.0,87743.0,0.00572]
[1766172903038,0.00572,87782.0,87743.0,0.00572]
[1766172903237,0.00572,87782.0,87766.0,0.0114]
[1766172903443,0.00572,87782.0,87753.0,0.00572]
[1766172903734,0.00572,87782.0,87766.0,0.0114001]
[1766172904840,0.00572,87782.0,87773.0,0.0113991]
[1766172905040,0.0113952,87805.0,87779.0,0.0113983]
[1766172905235,0.03217705,87804.0,87783.0,0.00017091]
[1766172905430,0.00572,87804.0,87783.0,0.00017091]
[1766172905631,0.0113955,87802.0,87783.0,9.1e-07]
[1766172905933,0.0113954,87803.0,87783.0,9.1e-07]
[1766172906844,0.00017044,87802.0,87783.0,9.1e-07]
[1766172908143,0.28447487,87800.0,87783.0,9.1e-07]
[1766172908539,0.00572,87799.0,87783.0,9.1e-07]
[1766172909448,0.0113966,87794.0,87783.0,9.1e-07]
[1766172909646,0.00572,87793.0,87783.0,9.1e-07]
[1766172910741,0.00572,87793.0,87784.0,0.0113978]
[1766172910939,0.00017044,87802.0,87783.0,9.1e-07]
[1766172911141,4e-08,87802.0,87800.0,0.00956951]
[1766172911343,4e-08,87802.0,87800.0,0.0113956]
[1766172912242,4e-08,87802.0,87797.0,0.0113961]
[1766172912846,4e-08,87802.0,87798.0,0.011396]
[1766172913651,4e-08,87802.0,87801.0,0.0113956]
[1766172914562,0.0113916,87832.0,87804.0,0.0113952]
[1766172914750,1.4538,87840.0,87818.0,0.0113934]
[1766172914950,0.00572,87839.0,87809.0,0.00364]
[1766172915551,0.00572,87838.0,87830.0,0.0113918]
[1766172915752,0.00572,87838.0,87810.0,0.28413662]
[1766172915753,0.00572,87838.0,87829.0,0.0113919]
[1766172916159,0.00572,87838.0,87826.0,0.0113923]
[1766172916354,0.01134199,87868.0,87832.0,0.0113915]
[1766172916547,1.45576,87867.0,87821.0,0.00572]
[1766172916747,0.0113882,87858.0,87838.0,0.00017081]
[1766172916948,0.00572,87857.0,87801.0,8.944e-05]
[1766172917158,0.28413662,87850.0,87812.0,0.11383039]
[1766172917358,0.0113896,87848.0,87823.0,0.0113927]
[1766172917560,0.0113896,87848.0,87819.0,0.0113932]
[1766172917755,0.0113896,87848.0,87822.0,0.0113928]
[1766172918058,0.00017047,87844.0,87826.0,0.00017081]
[1766172918562,0.00017047,87844.0,87830.0,0.0113918]
[1766172918758,0.00017047,87844.0,87826.0,0.00017081]
[1766172919263,0.00017047,87844.0,87826.0,0.01156311]
[1766172919462,0.0113905,87841.0,87826.0,0.00017081]
[1766172919648,0.00572,87840.0,87826.0,0.00017081]
[1766172920053,0.00572,87840.0,87826.0,0.01156311]
[1766172920557,0.00572,87840.0,87826.0,0.00017081]
[1766172920958,0.00017047,87844.0,87826.0,0.00017081]
[1766172921158,0.00017047,87844.0,87827.0,0.0113921]
[1766172921357,4.7e-07,87844.0,87836.0,0.011391]
[1766172921761,4.7e-07,87844.0,87829.0,0.00572]
[1766172922068,4.7e-07,87844.0,87830.0,0.0113918]
[1766172922869,4.7e-07,87844.0,87829.0,0.00572]
[1766172923070,0.0113905,87841.0,87828.0,0.00448]
[1766172923367,0.0113904,87841.0,87826.0,0.00017081]
[1766172923764,0.01139047,87844.0,87826.0,0.00017081]
[1766172924257,4.7e-07,87844.0,87826.0,0.01156311]
[1766172924457,4.7e-07,87844.0,87829.0,0.0113918]
[1766172924858,4.7e-07,87844.0,87826.0,0.00017081]
[1766172925760,0.0113902,87843.0,87826.0,0.00017081]
[1766172926470,0.0113902,87843.0,87826.0,0.00441081]
[1766172926868,4.7e-07,87844.0,87827.0,0.0113921]
[1766172927171,4.7e-07,87844.0,87828.0,0.011392]
[1766172927766,0.0113902,87843.0,87827.0,0.00572]
[1766172928164,0.0113908,87839.0,87827.0,0.00572]
[1766172928365,0.0113909,87838.0,87826.0,0.00017081]
[1766172928558,4.7e-07,87844.0,87826.0,0.00017081]
[1766172928559,0.0113904,87841.0,87826.0,0.00017081]
[1766172928758,4.7e-07,87844.0,87826.0,0.00017081]
[1766172929075,0.0113902,87843.0,87826.0,0.00017081]
[1766172929280,0.0113902,87843.0,87827.0,0.0113922]
[1766172930171,0.0113902,87843.0,87829.0,0.0113919]
[1766172930470,4.7e-07,87844.0,87831.0,0.0113916]
[1766172930671,4.7e-07,87844.0,87833.0,0.0113914]
[1766172930865,0.0113874,87865.0,87848.0,0.0113894]
[1766172931063,0.28413662,87890.0,87834.0,0.00572]
[1766172931064,0.0113844,87888.0,87850.0,0.28413662]
[1766172931258,0.28413662,87890.0,87847.0,0.00564]
[1766172931259,0.011385,87883.0,87856.0,0.0113885]
[1766172931479,0.0113867,87870.0,87856.0,0.0113885]
[1766172931666,0.0113867,87870.0,87857.0,0.00364]
[1766172931866,0.0113863,87873.0,87857.0,0.00364]
[1766172932066,0.0113866,87871.0,87857.0,0.00364]
[1766172932368,0.0113868,87869.0,87858.0,0.00572]
[1766172932768,0.0113865,87872.0,87858.0,0.00572]
[1766172933167,0.0113867,87870.0,87858.0,0.00572]
[1766172933374,0.0113852,87881.0,87858.0,0.00572]
[1766172933972,0.0113821,87905.0,87871.0,0.28413662]
[1766172934181,0.0827325,87930.0,87850.0,0.28413662]
[1766172934182,0.0113832,87897.0,87879.0,0.00017071]
[1766172934365,0.0113829,87899.0,87880.0,0.00572]
[1766172934675,0.00364,87910.0,87881.0,0.0113852]
[1766172934976,0.00364,87910.0,87880.0,0.0113853]
[1766172935175,0.0113819,87907.0,87882.0,0.00552]
[1766172935377,0.0113774,87942.0,87883.0,0.0018]
[1766172935378,0.00116,87917.0,87883.0,0.0018]
[1766172935676,0.00116,87917.0,87885.0,0.0113846]
[1766172935880,0.0113823,87904.0,87885.0,0.0113846]
[1766172936080,0.00116,87917.0,87886.0,0.00396]
[1766172936382,0.0125407,87917.0,87882.0,0.011385]
[1766172936570,0.0113823,87904.0,87885.0,0.0113847]
[1766172936770,0.00116,87917.0,87879.0,0.00017071]
[1766172936969,0.0113833,87896.0,87880.0,0.0048]
[1766172937381,0.00564,87907.0,87879.0,0.00017071]
[1766172937586,0.0113842,87890.0,87868.0,0.0113869]
[1766172937775,0.0018,87894.0,87860.0,0.0113879]
[1766172938076,0.0018,87894.0,87865.0,0.0113873]
[1766172938276,0.011385,87883.0,87866.0,0.00364]
[1766172938679,0.00017038,87883.0,87866.0,0.00381071]
[1766172939669,0.01155548,87883.0,87866.0,0.00381071]
[1766172939876,0.0018,87894.0,87870.0,0.28413662]
[1766172940389,0.0113837,87893.0,87875.0,0.0113859]
[1766172940678,0.0113837,87893.0,87875.0,0.0171059]
[1766172940883,0.0018,87894.0,87878.0,0.0113856]
[1766172941184,0.0018,87894.0,87875.0,0.00572]
[1766172941185,0.0131836,87894.0,87875.0,0.00572]
[1766172941686,1.45236,87936.0,87880.0,0.28413662]
[1766172941881,0.0113794,87927.0,87900.0,0.28413662]
[1766172942073,0.0113794,87927.0,87905.0,0.00017059]
[1766172942473,0.0113789,87931.0,87909.0,0.0113816]
[1766172942778,0.0113793,87927.0,87908.0,0.0113817]
[1766172943287,0.0113788,87931.0,87908.0,0.0113817]
[1766172943473,0.0113788,87931.0,87911.0,0.0113813]
[1766172943675,0.0113788,87931.0,87908.0,0.0113817]
[1766172943870,0.0113799,87922.0,87905.0,0.00017059]
[1766172944080,0.28413662,87920.0,87878.0,0.02990436]
[1766172944277,0.28413662,87920.0,87874.0,1.4522]
[1766172944278,1.45788,87919.0,87884.0,0.0113847]
[1766172944480,0.0113829,87900.0,87880.0,0.0113852]
[1766172944780,0.0113829,87900.0,87874.0,1.4522]
[1766172944781,0.00572,87902.0,87874.0,0.00572]
[1766172944984,0.0568864,87943.0,87880.0,0.28413662]
[1766172945183,0.0001702,87920.0,87903.0,9e-08]
[1766172945485,0.00572,87919.0,87903.0,9e-08]
[1766172945886,0.011382,87906.0,87903.0,9e-08]
[1766172946082,0.0113823,87904.0,87903.0,9e-08]
[1766172946587,0.00572,87905.0,87903.0,9e-08]
[1766172946787,0.0001702,87920.0,87903.0,9e-08]
[1766172946980,0.0001702,87920.0,87904.0,0.0113823]
[1766172947178,0.00488,87919.0,87903.0,9e-08]
[1766172947388,0.00572,87918.0,87903.0,9e-08]
[1766172947588,0.00572,87918.0,87903.0,0.01138239]
[1766172948093,0.00572,87917.0,87903.0,0.01138239]
[1766172948682,0.00572,87917.0,87903.0,9e-08]
[1766172949282,0.0113811,87914.0,87903.0,9e-08]
[1766172950297,0.00572,87917.0,87875.0,0.02990436]
[1766172950591,0.0113829,87899.0,87881.0,0.00164]
[1766172950787,0.00572,87898.0,87875.0,0.00572]
[1766172950991,0.0048,87906.0,87870.0,0.28413662]
[1766172951190,0.0048,87906.0,87859.0,0.03987249]
[1766172951191,0.0048,87906.0,87874.0,0.0113861]
[1766172951397,0.0113842,87890.0,87874.0,0.0113861]
[1766172951582,0.00152,87891.0,87868.0,0.00468]
[1766172951783,0.00017059,87899.0,87884.0,0.0113848]
[1766172951978,0.00189059,87899.0,87873.0,0.0113862]
[1766172952188,9e-08,87899.0,87893.0,0.0113836]
[1766172952381,9e-08,87899.0,87890.0,0.011384]
[1766172952584,9e-08,87899.0,87889.0,0.0113841]
[1766172952989,9e-08,87899.0,87881.0,0.00572]
[1766172953288,0.00017059,87899.0,87889.0,0.0113841]
[1766172953488,0.00017059,87899.0,87887.0,0.0113844]
[1766172954282,0.00017059,87899.0,87881.0,0.00589059]
[1766172954492,9e-08,87899.0,87881.0,0.00589059]
[1766172954793,1.463259,87929.0,87889.0,0.28413662]
[1766172955098,1.463259,87929.0,87880.0,1.45188]
[1766172955099,0.0113793,87927.0,87912.0,0.0113811]
[1766172955401,0.0113768,87947.0,87900.0,0.28413662]
[1766172955402,1.45184,87940.0,87910.0,0.28413662]
[1766172955693,0.00572,87939.0,87926.0,0.0113793]
[1766172955877,1.45184,87957.0,87911.0,0.00572]
[1766172955878,2e-07,87934.0,87923.0,0.0113798]
[1766172956082,2e-07,87934.0,87920.0,0.0113802]
[1766172956295,0.0113789,87930.0,87916.0,0.00017059]
[1766172956494,2e-07,87934.0,87916.0,0.00017059]
[1766172956689,2e-07,87934.0,87919.0,0.0113802]
[1766172956894,2e-07,87934.0,87925.0,0.0113794]
[1766172957087,2e-07,87934.0,87922.0,0.0113799]
[1766172957693,2e-07,87934.0,87919.0,0.0113803]
[1766172957887,0.0113786,87934.0,87918.0,0.00572]
[1766172958089,2e-07,87934.0,87918.0,0.00572]
[1766172958294,2e-07,87934.0,87921.0,0.01138]
[1766172958597,2e-07,87934.0,87916.0,0.00017059]
[1766172958598,0.0113787,87934.0,87917.0,0.00572]
[1766172958795,2e-07,87934.0,87918.0,0.0113804]
[1766172959096,2e-07,87934.0,87917.0,0.00572]
[1766172959499,0.011379,87930.0,87917.0,0.00572]
[1766172959996,0.011379,87930.0,87916.0,0.00017059]
[1766172959997,0.0113798,87923.0,87916.0,0.00017059]
[1766172960299,0.0113802,87921.0,87916.0,5.9e-07]
[1766172960796,0.0113805,87918.0,87916.0,5.9e-07]
[1766172962302,0.0113802,87920.0,87916.0,5.9e-07]
[1766172962503,0.00572,87921.0,87916.0,5.9e-07]
[1766172962913,0.00572,87923.0,87916.0,5.9e-07]
[1766172963195,0.0113786,87934.0,87916.0,5.9e-07]
[1766172963405,0.0113794,87926.0,87916.0,5.9e-07]
[1766172963604,0.0113811,87913.0,87910.0,9e-08]
[1766172963793,0.0113811,87913.0,87900.0,0.03987249]
[1766172963995,0.0113807,87916.0,87899.0,0.03987249]
[1766172964302,0.0113807,87916.0,87900.0,0.03987249]
[1766172964697,0.01155119,87917.0,87899.0,0.05142588]
[1766172965095,0.01155119,87917.0,87900.0,0.03987249]
[1766172965394,0.01155119,87917.0,87899.0,0.05142588]
[1766172965590,0.00017059,87917.0,87899.0,0.04004308]
[1766172965795,9e-08,87917.0,87902.0,0.03987249]
[1766172965995,9e-08,87917.0,87903.0,0.03987249]
[1766172966308,9e-08,87917.0,87909.0,0.0113815]
[1766172966504,9e-08,87917.0,87903.0,0.04559249]
[1766172966800,0.0008,87927.0,87911.0,0.0113812]
[1766172967197,0.0008,87927.0,87911.0,0.0113813]
[1766172967599,0.0008,87927.0,87903.0,0.04559249]
[1766172967796,0.0008,87927.0,87906.0,0.00017059]
[1766172967997,0.00024,87927.0,87906.0,0.00017059]
[1766172968291,0.00024,87930.0,87918.0,0.0113804]
[1766172968490,0.0113783,87935.0,87918.0,0.0113804]
[1766172968491,0.00176,87931.0,87918.0,0.0113804]
[1766172969305,0.00172,87931.0,87915.0,0.0113808]
[1766172969506,0.0113752,87959.0,87911.0,0.0113813]
[1766172969696,0.00364,87958.0,87926.0,0.00017059]
[1766172969895,0.0113767,87947.0,87916.0,0.03987249]
[1766172970110,0.0113789,87930.0,87912.0,0.0113811]
[1766172970305,0.0113795,87926.0,87909.0,0.0113815]
[1766172970607,0.0113772,87943.0,87913.0,0.011381]
[1766172970799,0.0113767,87947.0,87919.0,0.00017059]
[1766172970800,0.0113791,87929.0,87919.0,0.00017059]
[1766172971001,0.0113799,87922.0,87906.0,0.00572]
[1766172971306,0.00364,87928.0,87906.0,0.00572]
[1766172972010,0.00364,87928.0,87908.0,0.00017059]
[1766172972411,0.0113797,87924.0,87908.0,0.00017059]
[1766172973010,0.0113795,87926.0,87911.0,0.0113813]
[1766172973305,0.0113795,87926.0,87908.0,0.01155229]
[1766172973499,0.00017059,87937.0,87930.0,0.0113788]
[1766172973699,0.00017059,87937.0,87910.0,0.42696171]
[1766172973700,9e-08,87937.0,87931.0,0.0113787]
[1766172973903,0.00172,87964.0,87923.0,0.0113798]
[1766172974212,0.011375,87960.0,87923.0,0.0113797]
[1766172974415,0.0113747,87963.0,87922.0,0.06012412]
[1766172974601,0.00172,87964.0,87918.0,0.00032]
[1766172974602,1.45144,87959.0,87918.0,0.00032]
[1766172974800,0.0113774,87942.0,87919.0,0.0113803]
[1766172975105,0.00572,87941.0,87930.0,0.00017059]
[1766172975406,0.0113776,87940.0,87930.0,0.00017059]
[1766172975600,0.00572,87941.0,87930.0,0.00017059]
[1766172975601,0.011378,87937.0,87930.0,0.00017059]
[1766172975801,0.0170975,87941.0,87930.0,0.00017059]
[1766172976009,0.0113779,87938.0,87930.0,5.9e-07]
[1766172976401,0.0113783,87935.0,87930.0,5.9e-07]
[1766172976598,0.00017059,87947.0,87930.0,5.9e-07]
[1766172976801,0.0113772,87943.0,87930.0,5.9e-07]
[1766172977201,0.01154739,87947.0,87930.0,5.9e-07]
[1766172977405,0.00572,87946.0,87930.0,5.9e-07]
[1766172978113,0.0113772,87943.0,87930.0,5.9e-07]
[1766172978314,0.0113777,87940.0,87930.0,5.9e-07]
[1766172978819,0.00572,87946.0,87930.0,5.9e-07]
[1766172978820,0.0113772,87944.0,87930.0,5.9e-07]
[1766172979012,0.00572,87946.0,87930.0,5.9e-07]
[1766172979705,0.011377,87945.0,87930.0,5.9e-07]
[1766172979904,0.00572,87946.0,87930.0,5.9e-07]
[1766172980104,0.00572,87946.0,87931.0,0.0113787]
[1766172980310,0.00456,87946.0,87933.0,0.0113785]
[1766172980909,9e-08,87947.0,87930.0,5.9e-07]
[1766172981215,9e-08,87947.0,87936.0,0.011378]
[1766172981400,9e-08,87947.0,87932.0,0.0113786]
[1766172981808,9e-08,87947.0,87930.0,5.9e-07]
[1766172982012,9e-08,87947.0,87946.0,0.0113768]
[1766172982213,1.45124,88012.0,87946.0,0.002]
[1766172982419,0.08159891,88026.0,87946.0,0.002]
[1766172982420,0.0113677,88017.0,87980.0,0.41558031]
[1766172982602,0.0922777,88039.0,87954.0,0.0568785]
[1766172982603,0.0113688,88009.0,87982.0,0.0113721]
[1766172982807,0.00036,88015.0,87983.0,0.00572]
[1766172983007,0.41470386,88010.0,87963.0,0.0113745]
[1766172983316,0.0113725,87980.0,87978.0,9e-08]
[1766172983511,0.00572,87984.0,87948.0,0.00572]
[1766172983711,0.00572,87984.0,87949.0,0.0113764]
[1766172983915,0.00572,87984.0,87938.0,0.0113777]
[1766172983916,0.41470386,87980.0,87938.0,0.0113777]
[1766172984218,0.0113732,87974.0,87927.0,0.05999343]
[1766172984419,0.00017049,87963.0,87945.0,0.00017049]
[1766172984618,0.0113666,88025.0,87960.0,0.41470386]
[1766172984919,0.41470386,88010.0,87961.0,1.45684]
[1766172985115,0.0568302,88030.0,87961.0,1.45684]
[1766172985116,0.00184,88009.0,87984.0,0.0113718]
[1766172985305,1.45108,88053.0,87988.0,0.0113713]
[1766172985506,1.45108,88053.0,87970.0,0.41470386]
[1766172985507,0.41470386,88040.0,87995.0,0.0113705]
[1766172985806,0.00576,88048.0,88010.0,0.00017049]
[1766172985807,0.0113665,88026.0,88010.0,0.00017049]
[1766172986007,0.00016986,88027.0,88010.0,9e-08]
[1766172986609,0.00016986,88027.0,87973.0,0.0113733]
[1766172986805,0.0113684,88012.0,87981.0,0.0113722]
[1766172987005,0.00576,88011.0,87988.0,0.0113713]
[1766172987410,0.00576,88011.0,87984.0,0.00372]
[1766172987617,0.00017049,88006.0,87989.0,0.00017049]
[1766172987817,0.00017049,88006.0,87989.0,0.01154159]
[1766172988015,0.00017049,88006.0,87994.0,0.0113706]
[1766172988217,9e-08,88006.0,87994.0,0.0113706]
[1766172988618,9e-08,88006.0,87992.0,0.00576]
[1766172989012,9e-08,88006.0,87989.0,0.00017049]
[1766172989415,0.00016,88005.0,87989.0,0.00017049]
[1766172989612,9e-08,88006.0,87989.0,4.9e-07]
[1766172989813,0.011365,88038.0,87990.0,0.00576]
[1766172990022,0.011365,88038.0,87970.0,0.0113736]
[1766172990023,0.00028,88037.0,87966.0,0.0568707]
[1766172990223,0.0113688,88009.0,87957.0,1.45064]
[1766172990533,0.0113715,87988.0,87948.0,1.45064]
[1766172990725,0.00017049,87977.0,87959.0,0.00017049]
[1766172991024,0.00205049,87977.0,87959.0,0.00017049]
[1766172991221,0.011373,87976.0,87959.0,0.00017049]
[1766172992011,0.00205049,87977.0,87959.0,0.00017049]
[1766172992526,0.00205049,87977.0,87959.0,0.01154559]
[1766172992725,0.00205049,87977.0,87963.0,0.0113746]
[1766172993022,0.001,87982.0,87959.0,0.00017049]
[1766172993213,1.45056,88004.0,87959.0,0.00017049]
[1766172993410,0.0113709,87992.0,87964.0,0.0113744]
[1766172993925,0.0113717,87986.0,87969.0,0.00017049]
[1766172994112,0.00016937,87987.0,87969.0,0.00017049]
[1766172994312,0.00016937,87987.0,87969.0,0.01154419]
[1766172994626,0.00188,87986.0,87969.0,0.01154419]
[1766172995927,0.00188,87986.0,87969.0,0.00017049]
[1766172996524,0.0113721,87983.0,87958.0,0.0113752]
[1766172996718,0.00188,87986.0,87934.0,0.00013783]
[1766172996925,0.0113727,87978.0,87955.0,0.0113756]
[1766172997227,0.0113727,87978.0,87935.0,1.4542]
[1766172997228,0.011373,87976.0,87953.0,0.0171358]
[1766172997426,0.0113733,87974.0,87949.0,0.0113764]
[1766172997627,0.00017049,87970.0,87957.0,0.0113753]
[1766172997827,0.00017049,87970.0,87960.0,0.0113749]
[1766172998224,9e-08,87970.0,87953.0,0.01154639]
[1766172998424,9e-08,87970.0,87956.0,0.0113754]
[1766172998726,9e-08,87970.0,87959.0,0.0113751]
[1766172999034,9e-08,87970.0,87955.0,0.0113756]
[1766172999227,9e-08,87970.0,87954.0,0.0113757]
[1766172999531,9e-08,87970.0,87957.0,0.0113754]
[1766173000031,9e-08,87970.0,87963.0,0.0113745]
[1766173000441,9e-08,87970.0,87959.0,0.0113751]
[1766173001132,6e-08,87965.0,87953.0,0.00017049]
[1766173001326,9e-08,87970.0,87957.0,0.0113753]
[1766173001628,9e-08,87970.0,87953.0,0.01154629]
[1766173002130,9e-08,87970.0,87954.0,0.0113757]
[1766173002432,9e-08,87970.0,87957.0,0.0113754]
[1766173002631,9e-08,87970.0,87953.0,0.00017049]
[1766173002828,9e-08,87970.0,87953.0,4.9e-07]
[1766173003233,0.0113746,87964.0,87953.0,4.9e-07]
[1766173003436,0.01137389,87970.0,87953.0,4.9e-07]
[1766173004134,9e-08,87970.0,87959.0,0.0113751]
[1766173004333,9e-08,87970.0,87953.0,4.9e-07]
[1766173005124,9e-08,87970.0,87958.0,0.0113752]
[1766173006431,9e-08,87970.0,87967.0,0.0113741]
[1766173006631,9e-08,87970.0,87957.0,0.00576]
[1766173006934,1.45052,88011.0,87960.0,0.41470386]
[1766173007231,0.0113699,88000.0,87983.0,0.011372]
[1766173007434,0.0113696,88003.0,87976.0,0.00576]
[1766173007635,0.0113699,88000.0,87980.0,0.0113724]
[1766173007941,0.00017049,87999.0,87982.0,0.0113721]
[1766173008334,0.00017049,87999.0,87981.0,0.00017049]
[1766173008635,0.00017049,87999.0,87983.0,0.0113719]
[1766173008830,0.0113702,87998.0,87981.0,0.00017049]
[1766173009136,0.01154049,87999.0,87981.0,0.00017049]
[1766173009638,0.00017049,87999.0,87981.0,0.01154269]
[1766173010131,0.00017049,87999.0,87984.0,0.0113719]
[1766173010834,0.00017049,87999.0,87982.0,0.00576]
[1766173011035,0.00017049,87999.0,87982.0,0.0171322]
[1766173011235,0.00017049,87999.0,87982.0,0.00576]
[1766173011430,4.9e-07,87999.0,87982.0,0.00576]
[1766173011641,0.01137049,87999.0,87982.0,0.00576]
[1766173011837,4.9e-07,87999.0,87982.0,0.00576]
[1766173012027,0.0113701,87998.0,87982.0,0.00576]
[1766173012226,0.0113705,87995.0,87982.0,0.00576]
[1766173012538,0.0113705,87995.0,87982.0,0.00572]
[1766173013034,0.01137059,87999.0,87982.0,0.00572]
[1766173013435,0.0113704,87996.0,87982.0,0.00572]
[1766173014441,0.0113707,87993.0,87982.0,0.00572]
[1766173014737,0.0113703,87997.0,87982.0,0.00572]
[1766173015635,4.9e-07,87999.0,87982.0,0.00572]
[1766173015931,4.9e-07,87999.0,87981.0,9e-08]
[1766173016136,0.0113706,87994.0,87981.0,0.00572]
[1766173016339,0.0113705,87995.0,87981.0,0.00572]
[1766173016734,0.0113708,87993.0,87981.0,0.00572]
[1766173016942,4.9e-07,87999.0,87981.0,0.00572]
[1766173017142,0.0113713,87989.0,87981.0,0.00572]
[1766173017348,4.9e-07,87999.0,87978.0,0.00017049]
[1766173017638,0.0113702,87997.0,87978.0,9e-08]
[1766173017838,4.9e-07,87999.0,87978.0,9e-08]
[1766173018038,4.9e-07,87999.0,87980.0,0.0113723]
[1766173018234,4.9e-07,87999.0,87982.0,0.0113721]
[1766173018435,4.9e-07,87999.0,87982.0,0.0170921]